fUSD/lending_fUSD_20241106
["ID","MTS","AMOUNT","RATE_DAILY","PERIOD"]
[341413411,1730867446757,-500.0,0.00038297,14]
[341413412,1730867446767,-500.0,0.00038297,14]
[341413413,1730867446777,-500.0,0.00038297,14]
[341413414,1730867446787,-500.0,0.00038297,14]
[341413415,1730867446797,-150.0,0.00038297,14]
[341413416,1730867446807,-1000.0,0.00038297,14]
[341413417,1730867446817,-556.31,0.00038297,14]
[341413418,1730867446826,-218.24410551,0.00038297,15]
[341413419,1730867446854,-500.0,0.00037807,15]
[341413420,1730867446866,-247.41,0.00037807,15]
[341413421,1730867446882,-221.85697385,0.00037807,15]
[341413422,1730867446891,-500.0,0.00037807,15]
[341413423,1730867446900,-557.75498321,0.00037807,15]
[341413424,1730867446910,-281.75589449,0.00038297,15]
[341413425,1730867446919,-253.5130822,0.00038297,15]
[341413426,1730867446929,-500.0,0.00038297,15]
[341413427,1730867446939,-500.0,0.00038297,2]
[341413428,1730867446949,-264.99,0.00038297,14]
[341413429,1730867446958,-481.16501381,0.00038298,14]
[341413430,1730867446967,-500.0,0.00038298,14]
[341413431,1730867446976,-500.0,0.00038298,14]
[341413432,1730867446986,-500.0,0.00038298,14]
[341413433,1730867446994,-500.0,0.00038298,14]
[341413434,1730867447003,-500.0,0.00038298,14]
[341413435,1730867447012,-500.0,0.00038298,14]
[341413436,1730867447021,-500.0,0.00038298,14]
[341413437,1730867447030,-500.0,0.00038298,14]
[341413438,1730867447040,-500.0,0.00038298,14]
[341413439,1730867447048,-500.0,0.00038298,14]
[341413440,1730867447059,-646.04636633,0.00038298,14]
[341413441,1730867447067,-500.0,0.00038298,14]
[341413442,1730867447075,-500.0,0.00038298,14]
[341413443,1730867447083,-278.41969158,0.00038298,14]
[341413444,1730867447091,-500.0,0.00038298,14]
[341413445,1730867447099,-500.0,0.00038298,14]
[341413446,1730867447107,-500.0,0.00038298,14]
[341413447,1730867447118,-500.0,0.00038298,14]
[341413448,1730867447126,-500.0,0.00038298,14]
[341413449,1730867447134,-500.0,0.00038298,14]
[341413450,1730867447143,-500.0,0.00038298,14]
[341413451,1730867447152,-500.0,0.00038298,14]
[341413452,1730867447163,-500.0,0.00038298,14]
[341413453,1730867447171,-500.0,0.00038298,14]
[341413454,1730867447180,-500.0,0.00038298,14]
[341413455,1730867447188,-500.0,0.00038298,14]
[341413456,1730867447199,-500.0,0.00038298,14]
[341413457,1730867447207,-500.0,0.00038298,14]
[341413458,1730867447217,-317.73983243,0.00038298,14]
[341413459,1730867447227,-500.0,0.00038298,14]
[341413460,1730867447239,-500.0,0.00038298,14]
[341413461,1730867447249,-500.0,0.00038298,14]
[341413462,1730867447259,-500.0,0.00038298,14]
[341413463,1730867447268,-500.0,0.00038298,14]
[341413464,1730867447277,-500.0,0.00038298,14]
[341413465,1730867447286,-500.0,0.00038298,14]
[341413466,1730867447296,-593.81011723,0.00038298,14]
[341413467,1730867447307,-500.0,0.00038298,14]
[341413468,1730867447316,-500.0,0.00038298,14]
[341413469,1730867447326,-500.0,0.00038298,14]
[341413470,1730867447336,-500.0,0.00038298,14]
[341413471,1730867447348,-500.0,0.00038298,14]
[341413472,1730867447357,-500.0,0.00038298,14]
[341413473,1730867447370,-500.0,0.00038298,14]
[341413474,1730867447379,-500.0,0.00038298,14]
[341413475,1730867447389,-500.0,0.00038298,14]
[341413476,1730867447398,-500.0,0.00038298,14]
[341413477,1730867447407,-500.0,0.00038298,14]
[341413478,1730867447416,-500.0,0.00038298,14]
[341413479,1730867447426,-500.0,0.00038298,14]
[341413480,1730867447436,-500.0,0.00038298,14]
[341413481,1730867447446,-500.0,0.00038298,14]
[341413482,1730867447455,-585.91,0.00038298,14]
[341413483,1730867447465,-585.91,0.00038298,14]
[341413484,1730867447475,-585.91,0.00038298,14]
[341413485,1730867447484,-761.94,0.00038298,14]
[341413486,1730867447493,-761.94,0.00038298,14]
[341413487,1730867447503,-761.94,0.00038298,14]
[341413488,1730867447513,-500.0,0.00038298,14]
[341413489,1730867447523,-500.0,0.00038298,14]
[341413490,1730867447532,-336.51360236,0.00038298,14]
[341413491,1730867447542,-500.0,0.00038298,14]
[341413492,1730867447551,-500.0,0.00038298,14]
[341413493,1730867447561,-500.0,0.00038298,14]
[341413494,1730867447570,-500.0,0.00038298,14]
[341413495,1730867447579,-500.0,0.00038298,14]
[341413496,1730867447590,-500.0,0.00038298,14]
[341413497,1730867447600,-500.0,0.00038298,14]
[341413498,1730867447609,-500.0,0.00038298,14]
[341413499,1730867447623,-500.0,0.00038298,14]
[341413500,1730867447632,-511.31,0.00038298,14]
[341413501,1730867447642,-511.31,0.00038298,14]
[341413502,1730867447651,-511.31,0.00038298,14]
[341413503,1730867447660,-511.31,0.00038298,14]
[341413504,1730867447669,-511.31,0.00038298,14]
[341413505,1730867447678,-511.31,0.00038298,14]
[341413506,1730867447687,-511.31,0.00038298,14]
[341413507,1730867447698,-511.31,0.00038298,14]
[341413508,1730867447709,-511.31,0.00038298,14]
[341413509,1730867447719,-511.31,0.00038298,14]
[341413510,1730867447728,-511.31,0.00038298,14]
[341413511,1730867447739,-511.31,0.00038298,14]
[341413512,1730867447748,-511.31,0.00038298,14]
[341413513,1730867447758,-511.31,0.00038298,14]
[341413514,1730867447768,-511.31,0.00038298,14]
[341413515,1730867447776,-511.31,0.00038298,14]
[341413516,1730867447784,-511.31,0.00038298,14]
[341413517,1730867447793,-511.31,0.00038298,14]
[341413518,1730867447801,-511.31,0.00038298,14]
[341413519,1730867447810,-511.31,0.00038298,14]
[341413520,1730867447818,-511.31,0.00038298,14]
[341413521,1730867447827,-511.31,0.00038298,14]
[341413522,1730867447836,-511.31,0.00038298,14]
[341413523,1730867447844,-511.52910341,0.00038298,14]
[341413524,1730867447853,-2773.71668065,0.00038298,3]
[341413525,1730867447862,-225.66839715,0.00038298,14]
[341413526,1730867447873,-440.68726079,0.00038298,14]
[341413527,1730867447882,-178.12950258,0.00038298,14]
[341413528,1730867447891,-559.84299139,0.00038298,14]
[341413529,1730867447900,-500.0,0.00038298,14]
[341413530,1730867447909,-500.0,0.00038298,14]
[341413531,1730867447922,-500.0,0.00038298,14]
[341413532,1730867447933,-368.11712736,0.00038298,14]
[341413533,1730867447943,-500.0,0.00038298,14]
[341413534,1730867447953,-500.0,0.00038298,14]
[341413535,1730867447962,-500.0,0.00038298,14]
[341413536,1730867447971,-508.49,0.00038299,14]
[341413537,1730867447980,-508.49,0.00038299,14]
[341413538,1730867447989,-508.49,0.00038299,14]
[341413539,1730867447999,-508.49,0.00038299,14]
[341413540,1730867448008,-500.0,0.00038299,14]
[341413541,1730867448017,-500.0,0.00038299,14]
[341413542,1730867448026,-500.0,0.00038299,14]
[341413543,1730867448035,-500.0,0.00038299,14]
[341413544,1730867448045,-1490.01,0.00038299,14]
[341413545,1730867448053,-1490.01,0.00038299,14]
[341413546,1730867448063,-1490.01,0.00038299,14]
[341413547,1730867448072,-1490.01,0.00038299,14]
[341413548,1730867448082,-500.0,0.00038299,14]
[341413549,1730867448091,-557.46219799,0.00038299,14]
[341413550,1730867448101,-620.83,0.00038299,14]
[341413551,1730867448110,-500.0,0.00038299,14]
[341413552,1730867448123,-500.0,0.00038299,14]
[341413553,1730867448132,-500.0,0.00038299,14]
[341413554,1730867448142,-500.0,0.00038299,14]
[341413555,1730867448152,-600.51,0.00038299,14]
[341413556,1730867448165,-600.51,0.00038299,14]
[341413557,1730867448174,-600.51,0.00038299,14]
[341413558,1730867448183,-500.0,0.00038299,14]
[341413559,1730867448195,-500.0,0.00038299,14]
[341413560,1730867448204,-500.0,0.00038299,14]
[341413561,1730867448213,-500.0,0.00038299,14]
[341413562,1730867448223,-500.0,0.00038299,14]
[341413563,1730867448232,-500.0,0.00038299,14]
[341413564,1730867448242,-500.0,0.00038299,14]
[341413565,1730867448252,-500.0,0.00038299,14]
[341413566,1730867448261,-500.0,0.00038299,14]
[341413567,1730867448270,-500.0,0.00038299,14]
[341413568,1730867448279,-500.0,0.00038299,14]
[341413569,1730867448288,-500.0,0.00038299,14]
[341413570,1730867448297,-2424.64,0.00038299,14]
[341413571,1730867448307,-2424.64,0.00038299,14]
[341413572,1730867448316,-2424.64,0.00038299,14]
[341413573,1730867448325,-500.0,0.00038299,14]
[341413574,1730867448335,-500.0,0.00038299,14]
[341413575,1730867448345,-500.0,0.00038299,14]
[341413576,1730867448355,-500.0,0.00038299,14]
[341413577,1730867448366,-371.767982,0.000383,35]
[341413578,1730867448375,-500.0,0.00038322,14]
[341413579,1730867448384,-500.0,0.00038322,14]
[341413580,1730867448393,-287.0,0.00038326,30]
[341413581,1730867448405,-150.5,0.00038326,120]
[341413582,1730867448414,-508.49,0.00038329,14]
[341413583,1730867448423,-500.0,0.00038329,14]
[341413584,1730867448432,-1490.01,0.00038329,14]
[341413585,1730867448441,-500.0,0.00038329,14]
[341413586,1730867448451,-500.0,0.00038329,14]
[341413587,1730867448460,-500.0,0.00038329,14]
[341413588,1730867448470,-150.5,0.00038336,30]
[341413589,1730867448479,-159.35,0.00038336,120]
[341413590,1730867448489,-150.5,0.00038336,120]
[341413591,1730867448498,-500.0,0.00038342,14]
[341413592,1730867448508,-500.0,0.00038342,14]
[341413593,1730867448517,-162.9163204,0.00038343,14]
[341413594,1730867448526,-2535.1858767,0.00038346,2]
[341413595,1730867448535,-150.5,0.00038346,30]
[341413596,1730867448545,-150.5,0.00038346,120]
[341413597,1730867448554,-150.5,0.00038346,120]
[341413598,1730867448564,-1107.13,0.00038352,14]
[341413599,1730867448574,-272.82,0.00038352,14]
[341413600,1730867448583,-557.71,0.00038352,14]
[341413601,1730867448593,-1447.7,0.00038352,14]
[341413602,1730867448603,-710.13,0.00038352,14]
[341413603,1730867448612,-620.83,0.00038353,14]
[341413604,1730867448623,-1470.86,0.00038353,14]
[341413605,1730867448634,-1470.86,0.00038353,14]
[341413606,1730867448643,-500.0,0.00038353,14]
[341413607,1730867448653,-500.0,0.00038353,14]
[341413608,1730867448662,-500.0,0.00038353,14]
[341413609,1730867448672,-500.0,0.00038353,14]
[341413610,1730867448681,-500.0,0.00038353,14]
[341413611,1730867448690,-500.0,0.00038353,14]
[341413612,1730867448700,-1154.4,0.00038353,14]
[341413613,1730867448709,-1154.4,0.00038353,14]
[341413614,1730867448718,-500.0,0.00038353,14]
[341413615,1730867448727,-500.0,0.00038353,14]
[341413616,1730867448737,-500.0,0.00038353,14]
[341413617,1730867448746,-500.0,0.00038353,14]
[341413618,1730867448755,-926.87,0.00038353,14]
[341413619,1730867448764,-926.87,0.00038353,14]
[341413620,1730867448774,-928.79,0.00038353,14]
[341413621,1730867448783,-928.79,0.00038353,14]
[341413622,1730867448793,-500.0,0.00038353,14]
[341413623,1730867448803,-500.0,0.00038353,14]
[341413624,1730867448812,-500.0,0.00038353,14]
[341413625,1730867448821,-500.0,0.00038353,14]
[341413626,1730867448830,-2011.69,0.00038353,14]
[341413627,1730867448840,-2011.69,0.00038353,14]
[341413628,1730867448849,-1541.48,0.00038353,14]
[341413629,1730867448859,-1541.48,0.00038353,14]
[341413630,1730867448869,-500.0,0.00038353,14]
[341413631,1730867448879,-500.0,0.00038353,14]
[341413632,1730867448889,-500.0,0.00038353,14]
[341413633,1730867448898,-301.96,0.00038353,14]
[341413634,1730867448907,-1356.7943608,0.00038353,14]
[341413635,1730867448929,-500.0,0.00037807,15]
[341413636,1730867448938,-500.0,0.00037807,15]
[341413637,1730867448947,-2141.8156392,0.00038353,14]
[341413638,1730867448956,-3498.61,0.00038353,14]
[341413639,1730867448966,-689.85,0.00038353,14]
[341413640,1730867448975,-155.3657608,0.00038353,14]
[341413643,1730868020533,156.84,0.00015342,2]
[341413645,1730868337098,-1147.0,0.000236,2]
[341413646,1730868337124,-500.0,0.00024932,2]
[341413647,1730868337145,-712.16,0.00034663,2]
[341413648,1730868337166,-163.78,0.00035799,2]
[341413649,1730868337187,-120.87745846,0.00036187,2]
[341413650,1730868344095,-129.12254154,0.00036187,2]
[341413651,1730868344116,-435.06,0.00036207,2]
[341413652,1730868344135,-250.0,0.00036291,2]
[341413653,1730868344155,-250.0,0.00036291,120]
[341413654,1730868344175,-200.0,0.00036356,7]
[341413655,1730868344195,-161.92,0.00036421,2]
[341413656,1730868344214,-167.11,0.00036452,2]
[341413657,1730868344233,-153.75,0.00036487,2]
[341413658,1730868344253,-1000.0,0.00036491,2]
[341413659,1730868344272,-160.14,0.00036636,120]
[341413660,1730868344292,-171.42311226,0.0003664,120]
[341413661,1730868430136,-676.55,0.00034783,2]
[341413662,1730868430155,-4331.0180879,0.00035,30]
[341413663,1730868443147,-668.9819121,0.00035,30]
[341413664,1730868443168,-163.78,0.00035889,2]
[341413665,1730868443191,-163.81,0.00036626,120]
[341413666,1730868443212,-257.99073196,0.0003664,120]
[341413667,1730868448107,-19.25615578,0.0003664,120]
[341413668,1730868448130,-170.56,0.00036676,2]
[341413669,1730868448152,-4546.6577852,0.00037,120]
[341413670,1730868448173,-676.55,0.00037047,2]
[341413671,1730868448196,-300.0,0.000371,13]
[341413672,1730868448216,-600.0,0.000372,13]
[341413673,1730868448237,-155.37,0.00037207,2]
[341413674,1730868448256,-1680.05034994,0.00037244,2]
[341413687,1730868631965,-300.0,0.00036688,2]
[341413688,1730868631975,-200.0,0.00036693,2]
[341413689,1730868631984,-1000.0,0.000373,13]
[341413690,1730868631993,-185.72949376,0.000373,104]
[341413691,1730868632003,-167.39,0.00037369,120]
[341413692,1730868632012,-2543.12,0.00037369,10]
[341413693,1730868632021,-1300.0,0.000374,13]
[341413694,1730868632031,-1700.0,0.000375,13]
[341413695,1730868632040,-1423.0,0.00037521,2]
[341413696,1730868632049,-300.0,0.000376,13]
[341413697,1730868632059,-500.0,0.00037608,2]
[341413698,1730868632068,-365.4425,0.00037608,2]
[341413699,1730868632082,-1801.405,0.0003762,49]
[341413700,1730868632092,-154.84619819,0.00037638,2]
[341413701,1730868632101,-738.0,0.00037639,2]
[341413702,1730868632111,-565.49,0.00037698,3]
[341413703,1730868632120,-565.47,0.00037698,3]
[341413705,1730868632129,-965.29,0.000377,7]
[341413707,1730868632138,-965.29,0.000377,7]
[341413709,1730868632147,-965.29,0.000377,7]
[341413710,1730868632157,-965.29,0.000377,7]
[341413711,1730868632166,-1350.21,0.000377,7]
[341413712,1730868632175,-1820.37,0.000377,7]
[341413713,1730868632185,-965.29,0.000377,7]
[341413714,1730868632195,-300.0,0.000377,13]
[341413715,1730868632205,-154.84619819,0.00037704,2]
[341413716,1730868632215,-500.0,0.00037707,15]
[341413717,1730868632225,-197.12859075,0.00037707,15]
[341413718,1730868632234,-500.0,0.00037707,15]
[341413719,1730868632244,-500.0,0.00037707,15]
[341413720,1730868632253,-500.0,0.00037707,15]
[341413721,1730868632263,-500.0,0.00037707,15]
[341413722,1730868632272,-500.0,0.00037707,15]
[341413723,1730868632281,-500.0,0.00037707,15]
[341413724,1730868632291,-500.0,0.00037707,15]
[341413725,1730868632300,-500.0,0.00037707,15]
[341413726,1730868632310,-500.0,0.00037707,15]
[341413727,1730868632319,-500.0,0.00037707,15]
[341413728,1730868632332,-500.0,0.00037707,15]
[341413729,1730868632342,-500.0,0.00037707,15]
[341413730,1730868632352,-500.0,0.00037707,15]
[341413731,1730868632361,-500.0,0.00037707,15]
[341413732,1730868632371,-453.37642292,0.00037707,15]
[341413733,1730868632380,-308.35434933,0.00037707,15]
[341413734,1730868632389,-211311.4609,0.00037708,2]
[341413735,1730868632398,-230.83757883,0.00037708,2]
[341413736,1730868632407,-315.81822716,0.00037708,2]
[341413737,1730868632416,-16541.12769525,0.00037738,15]
[341413738,1730868632426,-315.81822716,0.00037746,2]
[341413739,1730868632435,-154.84619819,0.00037769,2]
[341413740,1730868632445,-16541.12769525,0.0003777,15]
[341413741,1730868632454,-315.81822716,0.00037785,2]
[341413742,1730868632464,-300.0,0.000378,13]
[341413743,1730868632473,-16541.12769525,0.00037803,15]
[341413744,1730868632483,-500.0,0.00037808,14]
[341413745,1730868632493,-500.0,0.00037808,14]
[341413746,1730868632507,-552.59,0.00037808,14]
[341413747,1730868632517,-500.0,0.00037808,14]
[341413748,1730868632526,-500.0,0.00037808,14]
[341413749,1730868632536,-500.0,0.00037808,14]
[341413750,1730868632546,-500.35457205,0.00037808,14]
[341413751,1730868632555,-500.0,0.00037808,14]
[341413752,1730868632564,-500.0,0.00037808,14]
[341413753,1730868632575,-500.0,0.00037808,14]
[341413754,1730868632590,-500.0,0.00037808,14]
[341413755,1730868632600,-500.0,0.00037808,14]
[341413756,1730868632609,-452.79797345,0.00037808,14]
[341413757,1730868632619,-500.0,0.00037808,14]
[341413758,1730868632628,-500.0,0.00037808,14]
[341413759,1730868632638,-500.0,0.00037808,14]
[341413760,1730868632647,-500.0,0.00037808,14]
[341413761,1730868632656,-500.0,0.00037808,14]
[341413762,1730868632665,-543.5784316,0.00037808,14]
[341413763,1730868632675,-500.0,0.00037808,14]
[341413764,1730868632684,-500.0,0.00037808,14]
[341413765,1730868632693,-500.0,0.00037808,14]
[341413766,1730868632702,-500.0,0.00037808,14]
[341413767,1730868632711,-500.0,0.00037808,14]
[341413768,1730868632720,-500.0,0.00037808,14]
[341413769,1730868632730,-500.0,0.00037808,14]
[341413770,1730868632740,-500.0,0.00037808,14]
[341413771,1730868632749,-500.0,0.00037808,14]
[341413772,1730868632758,-500.0,0.00037808,14]
[341413773,1730868632768,-500.0,0.00037808,14]
[341413774,1730868632777,-500.0,0.00037808,14]
[341413775,1730868632787,-500.0,0.00037808,14]
[341413776,1730868632796,-500.0,0.00037808,14]
[341413777,1730868632805,-587.23380901,0.00037808,14]
[341413778,1730868632814,-500.0,0.00037808,14]
[341413779,1730868632823,-500.0,0.00037808,14]
[341413780,1730868632837,-500.0,0.00037808,14]
[341413781,1730868632847,-500.0,0.00037808,14]
[341413782,1730868632856,-500.0,0.00037808,14]
[341413783,1730868632865,-500.0,0.00037808,14]
[341413784,1730868632875,-500.0,0.00037808,14]
[341413785,1730868632884,-500.0,0.00037808,14]
[341413786,1730868632893,-500.0,0.00037808,14]
[341413787,1730868632902,-500.0,0.00037808,14]
[341413788,1730868632911,-500.0,0.00037808,14]
[341413789,1730868632920,-500.0,0.00037808,14]
[341413790,1730868632930,-500.0,0.00037808,14]
[341413791,1730868632940,-500.0,0.00037808,14]
[341413792,1730868632949,-500.0,0.00037808,14]
[341413793,1730868632959,-500.0,0.00037808,14]
[341413794,1730868632968,-500.0,0.00037808,14]
[341413795,1730868632978,-500.0,0.00037808,14]
[341413796,1730868632987,-500.0,0.00037808,14]
[341413797,1730868632996,-514.11846429,0.00037808,14]
[341413798,1730868633004,-636.33,0.00037808,14]
[341413799,1730868633014,-500.0,0.00037808,14]
[341413800,1730868633023,-500.0,0.00037808,14]
[341413801,1730868633033,-500.0,0.00037808,14]
[341413802,1730868633043,-494.15375984,0.00037808,14]
[341413803,1730868633053,-614.16225,0.00037808,14]
[341413804,1730868633063,-500.0,0.00037808,14]
[341413805,1730868633073,-648.2,0.00037808,14]
[341413806,1730868633086,-500.0,0.00037808,14]
[341413807,1730868633095,-500.0,0.00037808,14]
[341413808,1730868633105,-500.0,0.00037808,14]
[341413809,1730868633114,-500.0,0.00037808,14]
[341413810,1730868633124,-500.0,0.00037808,14]
[341413811,1730868633133,-500.0,0.00037808,14]
[341413812,1730868633143,-500.0,0.00037808,14]
[341413813,1730868633152,-500.0,0.00037808,14]
[341413814,1730868633162,-500.0,0.00037808,14]
[341413815,1730868633173,-500.0,0.00037808,7]
[341413816,1730868633182,-575.17728657,0.00037808,14]
[341413817,1730868633192,-500.0,0.00037808,14]
[341413818,1730868633201,-500.0,0.00037808,14]
[341413819,1730868633211,-500.0,0.00037808,14]
[341413820,1730868633221,-550.01,0.00037808,14]
[341413821,1730868633230,-500.0,0.00037808,14]
[341413822,1730868633240,-500.0,0.00037808,14]
[341413823,1730868633249,-513.2285422,0.00037808,14]
[341413824,1730868633259,-500.0,0.00037808,14]
[341413825,1730868633268,-500.0,0.00037808,14]
[341413826,1730868633277,-500.0,0.00037808,14]
[341413827,1730868633286,-500.0,0.00037808,14]
[341413828,1730868633296,-400.37017239,0.00037808,14]
[341413829,1730868633306,-500.0,0.00037808,14]
[341413830,1730868633315,-500.0,0.00037808,14]
[341413831,1730868633325,-500.0,0.00037808,14]
[341413832,1730868633337,-500.0,0.00037808,14]
[341413833,1730868633347,-500.0,0.00037808,14]
[341413834,1730868633356,-545.00400746,0.00037808,14]
[341413835,1730868633366,-500.0,0.00037808,14]
[341413836,1730868633376,-500.0,0.00037808,14]
[341413837,1730868633387,-500.0,0.00037808,14]
[341413838,1730868633397,-500.0,0.00037808,14]
[341413839,1730868633406,-500.0,0.00037808,14]
[341413840,1730868633416,-500.0,0.00037808,14]
[341413841,1730868633426,-500.0,0.00037808,14]
[341413842,1730868633435,-500.0,0.00037808,14]
[341413843,1730868633445,-500.0,0.00037808,14]
[341413844,1730868633455,-500.0,0.00037808,14]
[341413845,1730868633464,-502.79,0.00037808,14]
[341413846,1730868633474,-500.0,0.00037808,14]
[341413847,1730868633484,-500.0,0.00037808,14]
[341413848,1730868633494,-500.0,0.00037808,14]
[341413849,1730868633508,-500.0,0.00037808,14]
[341413850,1730868633517,-500.0,0.00037808,14]
[341413851,1730868633527,-500.0,0.00037808,14]
[341413852,1730868633537,-500.0,0.00037808,14]
[341413853,1730868633547,-500.0,0.00037808,14]
[341413854,1730868633556,-500.0,0.00037808,14]
[341413855,1730868633566,-500.0,0.00037808,14]
[341413856,1730868633578,-500.0,0.00037808,14]
[341413857,1730868633589,-500.0,0.00037808,14]
[341413858,1730868633600,-500.0,0.00037808,14]
[341413859,1730868633871,-500.0,0.00037808,14]
[341413860,1730868633880,-500.0,0.00037808,14]
[341413861,1730868633890,-500.0,0.00037808,14]
[341413862,1730868633899,-196.60314518,0.00037808,14]
[341413863,1730868633909,-516.22041726,0.00037808,14]
[341413864,1730868633918,-500.0,0.00037808,14]
[341413865,1730868633928,-500.0,0.00037808,14]
[341413866,1730868633937,-500.0,0.00037808,14]
[341413867,1730868633946,-500.0,0.00037808,14]
[341413868,1730868633956,-500.0,0.00037808,14]
[341413869,1730868633965,-614.96,0.00037808,14]
[341413870,1730868633975,-500.0,0.00037808,14]
[341413871,1730868633984,-500.0,0.00037808,14]
[341413872,1730868633994,-500.0,0.00037808,14]
[341413873,1730868634003,-500.0,0.00037808,14]
[341413874,1730868634012,-500.0,0.00037808,14]
[341413875,1730868634022,-500.0,0.00037808,14]
[341413876,1730868634031,-500.0,0.00037808,14]
[341413877,1730868634040,-500.0,0.00037808,14]
[341413878,1730868634050,-500.0,0.00037808,14]
[341413879,1730868634059,-500.0,0.00037808,14]
[341413880,1730868634069,-154.296734,0.00037808,14]
[341413881,1730868634080,-500.0,0.00037808,14]
[341413882,1730868634089,-152.709933,0.00037808,14]
[341413883,1730868634099,-500.0,0.00037808,14]
[341413884,1730868634109,-500.0,0.00037808,14]
[341413885,1730868634118,-500.0,0.00037808,14]
[341413886,1730868634127,-500.0,0.00037808,14]
[341413887,1730868634136,-500.0,0.00037808,14]
[341413888,1730868634146,-500.0,0.00037808,14]
[341413889,1730868634155,-522.77335069,0.00037808,14]
[341413890,1730868634165,-500.0,0.00037808,14]
[341413891,1730868634175,-496.28890701,0.00037808,14]
[341413892,1730868634184,-500.0,0.00037808,14]
[341413893,1730868634193,-500.0,0.00037808,14]
[341413894,1730868634202,-506.60725838,0.00037808,14]
[341413895,1730868634211,-500.0,0.00037808,14]
[341413896,1730868634220,-500.0,0.00037808,14]
[341413897,1730868634229,-519.99,0.00037808,2]
[341413898,1730868634238,-571.09938217,0.00037808,14]
[341413899,1730868634248,-500.0,0.00037808,14]
[341413900,1730868634257,-500.0,0.00037808,14]
[341413901,1730868634266,-500.0,0.00037808,14]
[341413902,1730868634275,-520.92682773,0.00037808,14]
[341413903,1730868634284,-500.0,0.00037808,14]
[341413904,1730868634293,-500.0,0.00037808,14]
[341413905,1730868634302,-500.0,0.00037808,14]
[341413906,1730868634311,-500.0,0.00037808,14]
[341413907,1730868634321,-500.0,0.00037808,14]
[341413908,1730868634333,-500.0,0.00037808,14]
[341413909,1730868634343,-151.528371,0.00037808,14]
[341413910,1730868634353,-500.0,0.00037808,14]
[341413911,1730868634362,-187.806594,0.00037808,14]
[341413912,1730868634372,-500.0,0.00037808,14]
[341413913,1730868634383,-500.0,0.00037808,14]
[341413914,1730868634393,-237.93842135,0.00037808,14]
[341413915,1730868634403,-500.0,0.00037808,14]
[341413916,1730868634414,-590.66878996,0.00037808,14]
[341413917,1730868634424,-500.0,0.00037808,14]
[341413918,1730868634435,-500.0,0.00037808,14]
[341413919,1730868634445,-500.0,0.00037808,14]
[341413920,1730868634455,-500.0,0.00037808,14]
[341413921,1730868634465,-500.0,0.00037808,14]
[341413922,1730868634475,-500.0,0.00037808,14]
[341413923,1730868634485,-500.0,0.00037808,14]
[341413924,1730868634496,-534.95474013,0.00037808,14]
[341413925,1730868634507,-500.0,0.00037808,14]
[341413926,1730868634517,-500.0,0.00037808,14]
[341413927,1730868634526,-500.0,0.00037808,14]
[341413928,1730868634535,-535.94939371,0.00037808,14]